fUST/lending_fUST_20260226
["ID","MTS","AMOUNT","RATE_DAILY","PERIOD"]
[406674852,1772064555164,-440.73206537,0.0001327,2]
[406674853,1772064555189,-500.0,0.0001327,2]
[406674854,1772064555213,-500.0,0.0001327,2]
[406674855,1772064555238,-500.0,0.0001327,2]
[406674856,1772064555262,-500.0,0.0001327,2]
[406674857,1772064555286,-500.0,0.0001327,2]
[406674858,1772064555309,-500.0,0.0001327,2]
[406674859,1772064555332,-500.0,0.0001327,2]
[406674860,1772064555355,-500.0,0.0001327,2]
[406674861,1772064555379,-500.0,0.0001327,2]
[406674862,1772064555404,-500.0,0.0001327,2]
[406674863,1772064555430,-500.0,0.0001327,2]
[406674864,1772064555453,-500.0,0.0001327,2]
[406674865,1772064555477,-690.46592155,0.0001327,2]
[406674866,1772064555502,-690.46592155,0.0001327,2]
[406674867,1772064555526,-690.46592155,0.0001327,2]
[406674868,1772064555549,-690.46592155,0.0001327,2]
[406674869,1772064555573,-690.46592155,0.0001327,2]
[406674870,1772064555596,-690.46592155,0.0001327,2]
[406674871,1772064555618,-690.46592155,0.0001327,2]
[406674872,1772064555642,-690.46592155,0.0001327,2]
[406674873,1772064555665,-690.46592155,0.0001327,2]
[406674874,1772064555687,-690.46592155,0.0001327,2]
[406674875,1772064555709,-690.46592155,0.0001327,2]
[406674876,1772064555732,-690.46592155,0.0001327,2]
[406674877,1772064555756,-690.46592155,0.0001327,2]
[406674878,1772064555780,-690.46592155,0.0001327,2]
[406674879,1772064555804,-690.46592155,0.0001327,2]
[406674880,1772064555833,-690.46592155,0.0001327,2]
[406674881,1772064555857,-690.46592155,0.0001327,2]
[406674882,1772064555880,-690.46592155,0.0001327,2]
[406674883,1772064555903,-690.46592155,0.0001327,2]
[406674884,1772064555926,-690.46592155,0.0001327,2]
[406674885,1772064555949,-690.46592155,0.0001327,2]
[406674886,1772064555972,-690.46592155,0.0001327,2]
[406674887,1772064555995,-690.46592155,0.0001327,2]
[406674888,1772064556018,-690.46592155,0.0001327,2]
[406674889,1772064556041,-690.46592155,0.0001327,2]
[406674890,1772064556064,-690.46592155,0.0001327,2]
[406674891,1772064556090,-690.46592155,0.0001327,2]
[406674892,1772064556112,-690.46592155,0.0001327,2]
[406674893,1772064556139,-690.46592155,0.0001327,2]
[406674894,1772064556162,-500.0,0.0001327,2]
[406674895,1772064556184,-500.0,0.0001327,2]
[406674896,1772064556209,-500.0,0.0001327,2]
[406674897,1772064556231,-500.0,0.0001327,2]
[406674898,1772064556253,-500.0,0.0001327,2]
[406674899,1772064556276,-500.0,0.0001327,2]
[406674900,1772064556298,-500.0,0.0001327,2]
[406674901,1772064556321,-500.0,0.0001327,2]
[406674902,1772064556345,-500.0,0.0001327,2]
[406674903,1772064556369,-500.0,0.0001327,2]
[406674904,1772064556405,-544.07320653,0.0001327,2]
[406674905,1772064556430,-500.0,0.0001327,2]
[406674906,1772064556456,-500.0,0.0001327,2]
[406674907,1772064556481,-500.0,0.0001327,2]
[406674908,1772064556506,-688.73975676,0.0001327,2]
[406674909,1772064556531,-688.73975676,0.0001327,2]
[406674910,1772064556557,-688.73975676,0.0001327,2]
[406674911,1772064556582,-688.73975676,0.0001327,2]
[406674912,1772064556606,-688.73975676,0.0001327,2]
[406674913,1772064556630,-688.73975676,0.0001327,2]
[406674914,1772064556655,-688.73975676,0.0001327,2]
[406674915,1772064556679,-688.73975676,0.0001327,2]
[406674916,1772064556705,-688.73975676,0.0001327,2]
[406674917,1772064556729,-688.73975676,0.0001327,2]
[406674918,1772064556752,-26147.09871531,0.0001327,2]
[406674919,1772064557860,-5813.30960641,0.0001327,2]
[406674920,1772064558745,-5973.99416778,0.0001327,2]
[406674921,1772064558764,-549.36450005,0.0001327,2]
[406674922,1772064558783,-500.0,0.00013273,2]
[406674923,1772064558802,-500.0,0.00013273,2]
[406674924,1772064558823,-500.0,0.00013273,2]
[406674925,1772064558841,-506.37229237,0.00013273,2]
[406674926,1772064558861,-500.0,0.00013273,2]
[406674927,1772064558881,-500.0,0.00013273,2]
[406674928,1772064558900,-500.0,0.00013273,2]
[406674929,1772064558919,-500.0,0.00013273,2]
[406674930,1772064558937,-500.0,0.00013273,2]
[406674931,1772064558956,-212.78231083,0.00013273,2]
[406674932,1772064558975,-500.0,0.00013273,2]
[406674933,1772064558995,-458.02456382,0.00013273,2]
[406674934,1772064559014,-500.0,0.00013273,2]
[406674935,1772064559033,-641.97978034,0.00013273,2]
[406674936,1772064559051,-500.0,0.00013273,2]
[406674937,1772064559071,-500.0,0.00013273,2]
[406674938,1772064559090,-500.0,0.00013273,2]
[406674939,1772064559109,-500.0,0.00013273,2]
[406674940,1772064559128,-1000.0,0.000133,14]
[406674941,1772064559153,-600.0,0.00013536,2]
[406674942,1772064559172,-500.0,0.00013698,2]
[406674943,1772064559193,-2861.13,0.00013698,2]
[406674944,1772064559213,-2861.13,0.00013698,2]
[406674945,1772064559232,-2861.13,0.00013698,2]
[406674946,1772064559251,-2861.13,0.00013698,2]
[406674947,1772064559271,-2861.13,0.00013698,2]
[406674948,1772064559290,-2861.13,0.00013698,2]
[406674949,1772064559309,-2861.13,0.00013698,2]
[406674950,1772064559328,-10946.2026521,0.00013699,2]
[406674951,1772064559348,-500.0,0.00013699,2]
[406674952,1772064559368,-500.0,0.00013699,2]
[406674953,1772064559389,-158.79582456,0.00013699,2]
[406674954,1772064559409,-177.75470331,0.00013699,2]
[406674955,1772064559429,-563.22133694,0.00013821,2]
[406674956,1772064559450,-500.0,0.00013821,2]
[406674957,1772064559470,-500.0,0.00013821,2]
[406674958,1772064559490,-500.0,0.00013821,2]
[406674959,1772064559510,-1000.0,0.00013821,2]
[406674960,1772064559530,-466.66354906,0.00014368,2]
[406674961,1772064559550,-420.0,0.00014547,2]
[406674962,1772064559571,-420.0,0.00014547,2]
[406674963,1772064559592,-1680.0,0.00014595,2]
[406674964,1772064559617,-720.0,0.0001489,2]
[406674965,1772064559636,-868.49988555,0.00015,2]
[406674966,1772064559657,-2264.33055878,0.00015204,2]
[406674967,1772064559678,-275.5895979,0.00015269,2]
[406674968,1772064559699,-289.0,0.00015949,2]
[406674969,1772064559892,-956.0,0.00016055,2]
[406674970,1772064567100,-864.0,0.00016379,2]
[406674971,1772064567127,-2264.33055878,0.00017239,2]
[406674972,1772064567156,-317.62868911,0.00017269,2]
[406674973,1772064567183,-208.80345114,0.00017829,2]
[406674974,1772064572109,-1121.89857321,0.00017997,2]
[406674975,1772064604045,500.0,0.00013273,2]
[406674976,1772064604201,500.0,0.00013273,2]
[406674977,1772064604814,41.28251371,9.5e-05,2]
[406674978,1772064604837,121.85748629,9.5e-05,2]
[406674979,1772064605289,163.14,9.6e-05,2]
[406674980,1772064605873,163.14,9.7e-05,2]
[406674981,1772064606479,163.14,9.9e-05,2]
[406674982,1772064606505,500.0,0.00013273,2]
[406674983,1772064606732,500.0,0.00013699,2]
[406674984,1772064607037,163.14,0.0001,2]
[406674985,1772064607530,508.42568191,0.00013273,2]
[406674986,1772064607585,163.14,0.000101,2]
[406674987,1772064607731,500.0,0.00013273,2]
[406674988,1772064607780,973.65893059,0.00013821,2]
[406674989,1772064608043,163.14,0.000102,2]
[406674990,1772064608669,163.14,0.000103,2]
[406674991,1772064609126,163.14,0.000104,2]
[406674992,1772064616618,578.22666014,0.00013269,2]
[406674993,1772064617947,500.0,0.00013269,2]
[406674994,1772064617974,500.0,0.00013269,2]
[406674995,1772064618002,500.0,0.00013269,2]
[406674996,1772064618036,500.0,0.00013269,2]
[406674997,1772064618066,500.0,0.00013269,2]
[406674998,1772064618101,500.0,0.00013269,2]
[406674999,1772064618135,500.0,0.00013269,2]
[406675000,1772064618174,500.0,0.00013269,2]
[406675001,1772064618200,500.0,0.00013269,2]
[406675002,1772064618227,500.0,0.00013269,2]
[406675003,1772064618274,500.0,0.00013269,2]
[406675004,1772064618302,500.0,0.00013269,2]
[406675005,1772064618350,612.28543253,0.00013269,2]
[406675006,1772064618378,500.0,0.00013269,2]
[406675007,1772064618588,500.0,0.00013269,2]
[406675008,1772064618627,500.0,0.00013269,2]
[406675009,1772064618667,218.24484529,0.00013269,2]
[406675010,1772064618695,500.0,0.00013269,2]
[406675011,1772064618729,500.0,0.00013269,2]
[406675012,1772064618764,269.40732066,0.00013269,2]
[406675013,1772064618795,500.0,0.00013269,2]
[406675014,1772064618849,500.0,0.00013269,2]
[406675015,1772064618920,500.0,0.00013269,2]
[406675016,1772064618956,218.03732883,0.00013269,2]
[406675017,1772064619002,500.0,0.00013269,2]
[406675018,1772064619051,500.0,0.00013269,2]
[406675019,1772064619175,500.0,0.00013269,2]
[406675020,1772064619207,500.0,0.00013269,2]
[406675021,1772064619269,500.0,0.00013269,2]
[406675056,1772064638647,-951.69058686,0.00017997,2]
[406675057,1772064638659,-15812.85410384,0.00017997,2]
[406675058,1772064638669,-3132.5433489,0.00018,2]
[406675059,1772064638678,-1000.0,0.00018287,2]
[406675060,1772064638688,-863.24037972,0.00018659,2]
[406675061,1772064638698,-1957.856,0.00018659,2]
[406675062,1772064638707,-194.72792766,0.00018659,2]
[406675063,1772064638717,-201.93286099,0.00018659,2]
[406675064,1772064638727,-500.0,0.00018659,2]
[406675065,1772064638736,-209.40437684,0.00018659,2]
[406675066,1772064638746,-500.0,0.00018659,2]
[406675067,1772064638756,-217.15233878,0.00018659,2]
[406675068,1772064638766,-225.18697532,0.00018659,2]
[406675069,1772064638775,-233.51889341,0.00018659,2]
[406675070,1772064638785,-500.0,0.00018659,2]
[406675071,1772064638795,-500.0,0.00018659,2]
[406675072,1772064638804,-242.15909246,0.00018659,2]
[406675073,1772064638814,-500.0,0.00018659,2]
[406675074,1772064638823,-500.0,0.00018659,2]
[406675075,1772064638833,-500.0,0.00018659,2]
[406675076,1772064638843,-2579.17784983,0.00018659,2]
[406675077,1772064638852,-251.11897888,0.00018659,2]
[406675078,1772064638862,-500.0,0.00018659,2]
[406675079,1772064638871,-260.4103811,0.00018659,2]
[406675080,1772064638880,-500.0,0.00018659,2]
[406675081,1772064638894,-270.0455652,0.00018659,2]
[406675082,1772064638904,-500.0,0.00018659,2]
[406675083,1772064638913,-280.03725112,0.00018659,2]
[406675084,1772064638923,-500.0,0.00018659,2]
[406675085,1772064638932,-290.39862941,0.00018659,2]
[406675086,1772064638942,-500.0,0.00018659,2]
[406675087,1772064638952,-301.1433787,0.00018659,2]
[406675088,1772064638962,-478.18856608,0.00018659,2]
[406675089,1772064638972,-500.0,0.00018659,2]
[406675090,1772064638982,-2177.85832087,0.00018714,2]
[406675091,1772064638991,-3543.79432984,0.00018859,2]
[406675092,1772064639000,-3000.0,0.00018863,2]
[406675093,1772064639009,-3000.0,0.00018863,2]
[406675094,1772064639019,-3000.0,0.00018863,2]
[406675095,1772064639028,-3000.0,0.00018863,2]
[406675096,1772064639037,-3000.0,0.00018863,2]
[406675097,1772064639047,-3000.0,0.00018863,2]
[406675098,1772064639057,-3000.0,0.00018863,2]
[406675099,1772064639067,-3000.0,0.00018863,2]
[406675100,1772064639077,-3000.0,0.00018863,2]
[406675101,1772064639087,-3000.0,0.00018863,2]
[406675102,1772064639096,-3000.0,0.00018863,2]
[406675103,1772064639106,-3000.0,0.00018863,2]
[406675104,1772064639115,-3000.0,0.00018863,2]
[406675105,1772064639124,-1144.058891,0.00018863,2]
[406675106,1772064639136,-500.0,0.00019,2]
[406675107,1772064639146,-319.72491257,0.00019,2]
[406675108,1772064639156,-600.0,0.00019031,2]
[406675109,1772064639167,-151.0,0.00019178,2]
[406675110,1772064639177,-151.0,0.00019178,2]
[406675111,1772064639186,-151.0,0.00019178,2]
[406675112,1772064639196,-151.0,0.00019178,2]
[406675113,1772064639206,-151.0,0.00019178,2]
[406675114,1772064639215,-151.0,0.00019178,2]
[406675115,1772064639226,-2674.60743027,0.00019207,2]
[406675116,1772064639236,-359.66778032,0.00019269,2]
[406675117,1772064639246,-267.8508,0.00019339,30]
[406675118,1772064639255,-155.779,0.000194,2]
[406675119,1772064639264,-784.57029245,0.000196,2]
[406675120,1772064639274,-800.0,0.00019734,2]
[406675121,1772064639284,-800.0,0.00019741,2]
[406675122,1772064639294,-800.0,0.00019745,2]
[406675123,1772064639303,-2773.56790519,0.00019755,2]
[406675124,1772064639313,-1424.274658,0.0001976,5]
[406675125,1772064639322,-1313.13596,0.0001978,5]
[406675126,1772064639332,-1000.0,0.0001978,5]
[406675127,1772064639341,-1000.0,0.000198,5]
[406675128,1772064639351,-1000.0,0.000198,5]
[406675129,1772064639361,-734.49377055,0.00019806,2]
[406675130,1772064639370,-1000.0,0.0001982,5]
[406675131,1772064639380,-1000.0,0.0001982,5]
[406675132,1772064639390,-637.0,0.00019837,2]
[406675133,1772064639399,-2180.0,0.00019837,2]
[406675134,1772064639409,-1385.0,0.00019837,2]
[406675135,1772064639418,-514.825,0.00019837,2]
[406675136,1772064639428,-534.512,0.00019837,2]
[406675137,1772064639438,-728.0,0.00019837,2]
[406675138,1772064639447,-800.0,0.00019839,2]
[406675139,1772064639456,-800.0,0.00019839,2]
[406675140,1772064639466,-1000.0,0.0001984,5]
[406675141,1772064639475,-1000.0,0.0001984,5]
[406675142,1772064639484,-800.0,0.00019854,2]
[406675143,1772064639494,-517.16038308,0.00019855,2]
[406675144,1772064639504,-800.0,0.00019856,2]
[406675145,1772064639513,-2861.13,0.00019856,2]
[406675146,1772064639523,-1000.0,0.0001986,5]
[406675147,1772064639533,-1000.0,0.0001986,5]
[406675148,1772064639542,-1000.0,0.0001988,5]
[406675149,1772064639552,-1000.0,0.0001988,5]
[406675150,1772064639561,-800.0,0.00019893,2]
[406675151,1772064639571,-1000.0,0.000199,5]
[406675152,1772064639581,-1000.0,0.000199,5]
[406675153,1772064639591,-1000.0,0.0001992,5]
[406675154,1772064639601,-1000.0,0.0001992,5]
[406675155,1772064639610,-800.0,0.00019921,2]
[406675156,1772064639620,-800.0,0.00019928,2]
[406675157,1772064639630,-1000.0,0.0001994,5]
[406675158,1772064639642,-1000.0,0.0001994,5]
[406675159,1772064639652,-412.32471225,0.00019942,2]
[406675160,1772064639662,-1000.0,0.0001996,5]
[406675161,1772064639674,-1000.0,0.0001996,5]
[406675162,1772064639683,-800.0,0.00019979,2]
[406675163,1772064639693,-1000.0,0.0001998,5]
[406675164,1772064639702,-1000.0,0.0001998,5]
[406675165,1772064639712,-800.0,0.00019983,2]
[406675166,1772064639722,-2861.13,0.00019987,2]
[406675167,1772064639732,-218.54,0.00019989,3]
[406675168,1772064639741,-655.63,0.00019989,3]
[406675169,1772064639751,-2861.13,0.00019999,2]
[406675170,1772064639762,-2861.13,0.00019999,2]
[406675171,1772064639773,-2861.13,0.00019999,2]
[406675172,1772064639783,-2861.13,0.00019999,2]
[406675173,1772064639792,-2861.13,0.00019999,2]
[406675174,1772064639802,-2861.13,0.00019999,2]
[406675175,1772064639811,-1881.48695537,0.00019999,2]
[406675176,1772064639825,-979.64304463,0.00019999,2]
[406675177,1772064639834,-2861.13,0.00019999,2]
[406675178,1772064639844,-2861.13,0.00019999,2]
[406675179,1772064639853,-2861.13,0.00019999,2]
[406675180,1772064639862,-2861.13,0.00019999,2]
[406675181,1772064639872,-2861.13,0.00019999,2]
[406675182,1772064639882,-2861.13,0.00019999,2]
[406675183,1772064639892,-2861.13,0.00019999,2]
[406675184,1772064639902,-2861.17513405,0.00019999,2]
[406675185,1772064639911,-151.0,0.00019999,2]
[406675186,1772064639921,-151.0,0.00019999,2]
[406675187,1772064639931,-251.52576,0.00019999,2]
[406675188,1772064639940,-48320.79902923,0.0002,2]
[406675224,1772064641190,-500.0,0.00018659,2]
[406675226,1772064641200,-188.01703949,0.0002,2]
[406675743,1772064646671,-500.0,0.00018659,2]
[406675745,1772064646682,-500.0,0.00018659,2]
[406675747,1772064646691,-17.70311142,0.00018659,2]
[406675758,1772064647221,-482.29688858,0.00018659,2]
[406675759,1772064647232,-500.0,0.00018659,2]
[406675760,1772064647242,-500.0,0.00018659,2]
[406675761,1772064647251,-500.0,0.00018659,2]
[406675762,1772064647261,-500.0,0.00018659,2]
[406675763,1772064647271,-500.0,0.00018659,2]
[406675764,1772064647281,-500.0,0.00018659,2]
[406675765,1772064647291,-5605.66164417,0.0002,2]
[406675766,1772064647732,-7110.76883344,0.0002,2]
[406675767,1772064647744,-1824.46636781,0.0002,2]
[406675768,1772064647768,-524740.36983824,0.0002,2]
[406675769,1772064647820,-92.35248643,0.0002,2]
[406675770,1772064647831,-1768.69806365,0.0002,2]
[406675771,1772064647857,-652.25,0.0002,2]
[406675772,1772064647868,-722.0,0.0002,2]
[406675773,1772064664604,500.0,0.00013273,2]
[406675774,1772064672054,500.0,0.00013273,2]
[406675775,1772064724676,500.0,0.00013273,2]
[406675776,1772064724731,500.0,0.00013273,2]
[406675777,1772064724804,500.0,0.00013821,2]
[406675778,1772064724850,500.0,0.00013821,2]
[406675779,1772064725064,500.0,0.00013273,2]
[406675780,1772064725112,500.0,0.00013821,2]
[406675781,1772064727245,466.6188373,0.00013273,2]
[406675782,1772064876904,685.41,0.00012,2]
[406675794,1772065204654,163.9,9.5e-05,2]
[406675795,1772065205116,163.9,9.6e-05,2]
[406675796,1772065205719,163.9,9.7e-05,2]
[406675797,1772065206187,163.9,9.8e-05,2]
[406675798,1772065206744,163.9,9.9e-05,2]
[406675799,1772065207295,163.9,0.0001,2]
[406675800,1772065207824,163.9,0.000101,2]
[406675801,1772065208294,163.9,0.000102,2]
[406675802,1772065208972,163.9,0.000103,2]
[406675803,1772065209495,163.9,0.000104,2]
[406675805,1772065551130,-1932.0133158,0.00012269,2]
[406675806,1772065551154,-236.60824664,0.00012384,2]
[406675807,1772065551177,-1584.5067425,0.00012498,2]
[406675808,1772065551203,-1510.28585706,0.00012553,2]
[406675809,1772065551226,-608.0,0.00013267,2]
[406675810,1772065551250,-1200.0,0.00013269,2]
[406675811,1772065551282,-300.0,0.0001327,2]
[406675812,1772065551309,-300.0,0.0001327,2]
[406675813,1772065551332,-300.0,0.0001327,2]
[406675814,1772065551355,-300.0,0.0001327,2]
[406675815,1772065551377,-500.0,0.00013271,2]
[406675816,1772065551398,-500.0,0.00013271,2]
[406675817,1772065551427,-500.0,0.00013271,2]
[406675818,1772065551454,-500.0,0.00013271,2]
[406675819,1772065551484,-500.0,0.00013271,2]
[406675820,1772065551509,-500.0,0.00013271,2]
[406675821,1772065551532,-500.0,0.00013271,2]
[406675822,1772065551556,-500.0,0.00013271,2]
[406675823,1772065551579,-500.0,0.00013271,2]
[406675824,1772065551605,-357.58276059,0.00013271,2]
[406675825,1772065551633,-500.0,0.00013271,2]
[406675826,1772065551658,-500.0,0.00013271,2]
[406675827,1772065551680,-500.0,0.00013271,2]
[406675828,1772065551702,-293.4002821,0.00013271,2]
[406675829,1772065551728,-500.0,0.00013271,2]
[406675830,1772065551756,-500.0,0.00013271,2]
[406675831,1772065551782,-500.0,0.00013271,2]
[406675832,1772065551805,-500.0,0.00013271,2]
[406675833,1772065551828,-500.0,0.00013271,2]
[406675834,1772065551854,-500.0,0.00013271,2]
[406675835,1772065551879,-500.0,0.00013271,2]
[406675836,1772065551904,-500.0,0.00013271,2]
[406675837,1772065551928,-500.0,0.00013271,2]
[406675838,1772065551954,-548.19109637,0.00013271,2]
[406675839,1772065551980,-576.94073206,0.00013271,2]
[406675840,1772065552002,-208.55458144,0.00013271,2]
[406675841,1772065552028,-500.0,0.00013271,2]
[406675842,1772065552053,-500.0,0.00013271,2]
[406675843,1772065552076,-485.06708355,0.00013271,2]
[406675844,1772065552100,-500.0,0.00013271,2]
[406675845,1772065552123,-582.68066315,0.00013271,2]
[406675846,1772065552148,-300.0,0.00013271,2]
[406675847,1772065552173,-193.11313502,0.00013272,2]
[406675848,1772065628100,-1350.39934721,0.00013173,2]
[406675849,1772065632112,-158.6646736,0.00013173,2]
[406675850,1772065633143,-682.49155309,0.00013173,2]
[406675851,1772065633424,-300.0,0.00013272,2]
[406675852,1772065633469,-300.0,0.00013272,2]
[406675853,1772065633490,-500.0,0.00013273,2]
[406675854,1772065633512,-563.62570301,0.00013273,2]
[406675855,1772065633532,-399.37705649,0.00013273,2]
[406675856,1772065651075,-100.62294351,0.00013273,2]
[406675857,1772065651097,-94.54298021,0.00013273,2]
[406675859,1772065746139,-300.95050905,0.00013272,2]
[406675860,1772065746181,-338.6878996,0.00013272,2]
[406675861,1772065746222,-500.0,0.00013272,2]
[406675862,1772065746263,-59.23165302,0.00013272,2]
[406675863,1772065749126,-327.99802293,0.00013272,2]
[406675864,1772065749152,-286.32674801,0.00013272,2]
[406675865,1772065749173,-300.0,0.00013272,2]
[406675866,1772065749193,-405.45701979,0.00013273,2]
[406675867,1772065749218,-500.0,0.00013273,2]
[406675868,1772065749239,-133.81924546,0.00013273,2]
[406675869,1772065749285,-366.18075454,0.00013273,2]
[406675870,1772065749307,-303.97774806,0.00013273,2]
[406675871,1772065749329,-50000.0,0.00013273,2]
[406675872,1772065749350,-500.0,0.00013273,2]
[406675873,1772065749372,-500.0,0.00013273,2]
[406675874,1772065749394,-500.0,0.00013273,2]
[406675875,1772065749418,-407.87646421,0.00013322,2]
[406675876,1772065749440,-15240.01873925,0.00013323,2]
[406675877,1772065749463,-189.785445,0.00013582,2]
[406675878,1772065749487,-473.53147907,0.00013698,2]
[406675879,1772065749509,-500.0,0.00013698,2]
[406675880,1772065749531,-782.940451,0.00013699,2]
[406675881,1772065749553,-410.70061666,0.00013699,2]
[406675882,1772065749577,-192.876154,0.00013821,7]
[406675883,1772065749602,-189.785445,0.00014154,2]
[406675884,1772065749627,-1582.70151503,0.00014175,2]
[406675885,1772065749651,-1389.58047629,0.00014175,2]
[406675886,1772065749676,-1379.59570888,0.00014175,2]
[406675887,1772065749699,-279.19773103,0.00014384,2]
[406675888,1772065749721,-420.0,0.00014548,2]
[406675889,1772065749742,-420.0,0.00014548,2]
[406675890,1772065749763,-359.0,0.00014548,2]
[406675891,1772065749784,-420.0,0.00014551,2]
[406675892,1772065749807,-1680.0,0.00014596,2]
[406675893,1772065749828,-1034.93506756,0.00014635,2]
[406675894,1772065749848,-189.785445,0.00014726,2]
[406675895,1772065749871,-548.54086504,0.0001516,2]
[406675896,1772065749894,-189.785445,0.00015297,2]
[406675897,1772065749918,-3139.21674124,0.00015449,2]
[406675898,1772065749940,-2191.5555739,0.00015488,2]
[406675899,1772065749963,-189.785445,0.00015869,2]
[406675900,1772065749984,-587.0,0.0001595,2]
[406675901,1772065750006,-587.0,0.0001595,2]
[406675902,1772065750028,-587.0,0.00015953,2]
[406675903,1772065750053,-321.78721543,0.00016384,2]
[406675904,1772065750075,-189.785445,0.00016441,2]
[406675905,1772065750101,-3882.74405615,0.00016722,2]
[406675906,1772065750124,-180.0,0.00017487,2]
[406675907,1772065750147,-180.0,0.00017487,2]
[406675908,1772065750171,-283.0,0.0001749,2]
[406675909,1772065750194,-250.84133324,0.00017742,2]
[406675910,1772065750217,-312.99716384,0.00017804,2]
[406675911,1772065758584,-500.0,0.00013273,2]
[406675912,1772065758605,-508.48890963,0.00013821,2]
[406675913,1772065770094,-491.51109037,0.00013821,2]
[406675914,1772065770116,-1500.0,0.00014368,2]
[406675915,1772065770137,-1649.53725364,0.00014916,2]
[406675916,1772065806224,282.31446179,0.00013273,2]
[406675917,1772065806450,500.0,0.00013273,2]
[406675918,1772065810177,214.85335992,0.00013273,2]
[406675923,1772065831577,-285.14664008,0.00013273,2]
[406675924,1772065831588,-4656.94282318,0.00017996,2]
[406675925,1772065831598,-225.6155407,0.00018073,2]
[406675926,1772065831608,-676.723,0.00018149,2]
[406675927,1772065831618,-500.0,0.00018651,2]
[406675928,1772065831629,-229.82888493,0.00018651,2]
[406675929,1772065831639,-660.99995832,0.00018651,2]
[406675930,1772065831649,-504.69786774,0.00018651,2]
[406675932,1772065831671,-48.94587033,0.00018651,2]
[406675934,1772065831682,-194.72792766,0.00018651,2]
[406675937,1772065831692,-201.93286099,0.00018651,2]
[406675939,1772065831702,-209.40437684,0.00018651,2]
[406675943,1772065831712,-89.65896418,0.00018651,2]
[406675946,1772065831725,-127.4933746,0.00018651,2]
[406675948,1772065831736,-220.3816254,0.00018651,2]
[406675950,1772065831748,-27.84124778,0.00018651,2]
[406675952,1772065831758,-225.18697532,0.00018651,2]
[406675954,1772065831769,-233.51889341,0.00018651,2]
[406675956,1772065831779,-500.0,0.00018651,2]
[406675958,1772065831790,-242.15909246,0.00018651,2]
[406675960,1772065831801,-251.11897888,0.00018651,2]
[406675962,1772065831810,-500.0,0.00018651,2]
[406675964,1772065831819,-260.4103811,0.00018651,2]
[406675966,1772065831830,-270.0455652,0.00018651,2]
[406675968,1772065831840,-280.03725112,0.00018651,2]
[406675970,1772065831849,-290.39862941,0.00018651,2]
[406675972,1772065831861,-301.1433787,0.00018651,2]
[406675974,1772065831870,-500.0,0.00018651,2]
[406675976,1772065831881,-500.0,0.00018651,2]
[406675978,1772065831895,-644.79446246,0.00018651,2]
[406675980,1772065831907,-2579.17784983,0.00018651,2]
[406675982,1772065831917,-1013.0680663,0.00018651,2]
[406675984,1772065831928,-1221.05,0.0001899,2]
[406675986,1772065831945,-175.26,0.00019,7]
[406675988,1772065831961,-668.65185757,0.00019199,2]
[406675990,1772065831972,-1458.66537077,0.00019269,2]
[406676013,1772065837858,-2674.60743027,0.00019199,2]
[406676014,1772065837868,-3237.06659668,0.00019269,2]
[406676015,1772065837878,-350.117,0.00019339,30]
[406676016,1772065837888,-168.0,0.00019358,2]
[406676017,1772065837897,-168.0,0.00019413,2]
[406676018,1772065837908,-168.0,0.00019439,2]
[406676019,1772065837918,-155.779,0.00019579,2]
[406676020,1772065837928,-588.20603374,0.000196,2]